Cogmind - Beta 9.6 @@@ ROGUE MODE // 2020.05.31 @ 23:00:10 Player: pGoos Result: Destroyed by Y-45 Defender with Beam Rifle Performance ------------- Evolutions (1) 500 Regions Visited (2) 400 Robots Destroyed (14) 70 Value Destroyed (285) 285 Prototype IDs (0) 0 Alien Tech Used (0) 0 Bonus (0) 0 TOTAL SCORE: 1255 Bonus ------- None Cogmind --------- Core Integrity 0/400 Matter 39/300 Energy 80/100 System Corruption 4% Temperature Cool (9) Movement Core (150) Ox2 Location -9/Materials Parts ------- > --- POWER (1) -------- (None) > --- PROPULSION (4) --- (None) > --- UTILITY (2) ------ Medium Storage Unit Signal Interpreter > --- WEAPON (2) ------- Plasma Cutter > --- INVENTORY (8) ---- Small Storage Unit Small Storage Unit Medium Storage Unit Medium Storage Unit Plasma Cutter Peak State ------------ > --- POWER ------------ (None) > --- PROPULSION ------- Flight Unit Flight Unit Flight Unit > --- UTILITY ---------- Medium Storage Unit Signal Interpreter > --- WEAPON ----------- Plasma Cutter Plasma Cutter > --- INVENTORY -------- Small Storage Unit Small Storage Unit Medium Storage Unit Medium Storage Unit Beam Rifle Light Assault Rifle Grenade Launcher Plasma Cutter [Rating: 10] Favorites ----------- Power Light Ion Engine Engine Light Ion Engine Propulsion Aluminum Leg Leg Aluminum Leg Flight Unit Flight Unit Utility Small Storage Unit Storage Small Storage Unit Processor Signal Interpreter Weapon Mining Laser Energy Gun Medium Laser Ballistic Gun Light Assault Rifle Launcher Grenade Launcher Special Weapon Mining Laser Impact Weapon Hammer Build | -11 -10 -9 ------- Run | Scr Mat Mat Slots Evolved 2 | . . 2 Power . | . . . Propulsion 2 | . . 2 Utility . | . . . Weapon . | . . . Parts Attached 48 | 6 27 15 Power 4 | 1 1 2 Engine 4 | 1 1 2 Core . | . . . Reactor . | . . . Propulsion 11 | 2 6 3 Treads . | . . . Leg 5 | 2 3 . Wheel . | . . . Hover . | . . . Flight 6 | . 3 3 Utility 10 | 1 8 1 Device . | . . . Storage 9 | 1 7 1 Processor 1 | . 1 . Hackware . | . . . Protection . | . . . Artifact . | . . . Weapon 23 | 2 12 9 Energy Gun 4 | 1 2 1 Energy Cannon . | . . . Ballistic Gun 4 | 1 2 1 Ballistic Cannon . | . . . Launcher 3 | . 1 2 Special Weapon 10 | . 5 5 Impact Weapon 2 | . 2 . Slashing Weapon . | . . . Piercing Weapon . | . . . Special Melee Weapon . | . . . Unidentified Prototypes . | . . . Parts Lost 16 | . 3 13 Power 3 | . . 3 Propulsion 6 | . 1 5 Utility . | . . . Weapon 7 | . 2 5 Highest Loss Streak 11 | . 2 11 Average Slot Usage (%) 84 | . 90 59 Engine 12 | . 13 6 Leg 17 | . 22 . Flight 8 | . 4 25 Storage 21 | . 24 11 Processor 4 | . 2 11 Energy Gun 5 | . 6 1 Ballistic Gun 3 | . 3 . Special Weapon 9 | . 10 2 Impact Weapon 1 | . 1 . Naked Turns 1 | . 1 . Heaviest Build 25 | 10 25 12 Greatest Support 20 | 20 20 12 Greatest Overweight (x) 2 | . 1 2 Average Overweight (x) . | . . . Largest Inventory Capacity 16 | 6 16 8 Average Capacity 8 | 5 8 7 Most Carried 10 | 1 10 8 Average Carried 6 | . 6 6 Final Capacity 8 | 6 6 8 Final Carried 5 | 1 5 5 Class Distribution -------------------- 84% | Mutant 15% | Scavenger-Mutant Dominant Class ---------------- Mutant | -10/Materials Scavenger-Mutant | -9/Materials Resources | -11 -10 -9 ----------- Run | Scr Mat Mat Matter Collected 377 | 212 128 37 Remotely . | . . . Salvage Created 222 | . 153 69 Parts 24 | . 15 9 Haulers Intercepted 1 | . 1 . Recyclers Shooed 3 | . 2 1 Parts Field Recycled . | . . . Retrieved Matter . | . . . Parts Self-Destructed . | . . . Prevented . | . . . Kills | -11 -10 -9 ------- Run | Scr Mat Mat Combat Hostiles Destroyed 13 | . 7 6 Guns 3 | . 2 1 Cannons 2 | . 2 . AOE 8 | . 3 5 Classes Destroyed 3 | . 3 . Hauler 1 | . 1 . Swarmer 8 | . 3 5 Grunt 5 | . 4 1 Best Kill Streak 4 | . 4 3 Combat Bots Only 3 | . 3 3 Max Kills in Single Turn 3 | . 3 2 Gunslinging . | . . . Exploded 3 | . 3 2 Melee . | . . . Uniques/NPCs Destroyed . | . . . Combat | -11 -10 -9 -------- Run | Scr Mat Mat Damage Taken 1391 | . 469 922 Core 545 | . 134 411 Absorbed by Shields . | . . . Core Remaining (%) 73 | 100 46 . Volleys Fired 29 | . 17 12 Largest 2 | . 2 2 Hottest 200 | . 200 56 Shots Fired 40 | . 27 13 Gun 17 | . 10 7 Cannon . | . . . Launcher 5 | . 1 4 Special 18 | . 16 2 Kinetic 11 | . 5 6 Thermal 24 | . 21 3 Explosive 5 | . 1 4 Electromagnetic . | . . . Robot Hit Streak 7 | . 7 6 Robot Miss Streak 2 | . 1 2 Penetration Max . | . . . Secondary Targets . | . . . Shots Hit Robots 20 | . 13 7 Core Hits 23 | . 13 10 Critical Hits . | . . . Critical Kills . | . . . Critical Parts Destroyed . | . . . Melee Attacks 18 | . 18 . Impact 18 | . 18 . Slashing . | . . . Piercing . | . . . Sneak Attacks . | . . . Combat Hostiles . | . . . Follow-up Attacks . | . . . Damage Inflicted 729 | . 350 379 Guns 146 | . 84 62 Cannons . | . . . Explosions 430 | . 146 284 Melee . | . . . Ramming 9 | . . 9 Kinetic 80 | . 33 47 Thermal 210 | . 171 39 Explosive 430 | . 146 284 Electromagnetic . | . . . Impact . | . . . Slashing . | . . . Piercing . | . . . Highest Corruption 4 | . . 4 Average Corruption 4 | . . 4 Corruption Purged . | . . . Effects 2 | . . 2 Energy Discharges 1 | . . 1 Targeting Errors 1 | . . 1 Overload Shots . | . . . Overflow Damage 5 | . . 5 Projectiles . | . . . Explosions 5 | . . 5 Melee . | . . . Knockbacks . | . . . Impact . | . . . Kinetic . | . . . Secondary . | . . . Self-Inflicted Damage 73 | . 40 33 Shots 2 | . 1 1 Rammed 8 | . . 8 Targets Rammed 8 | . . 8 Kicked . | . . . Crushed . | . . . Highest Temperature 186 | . 186 6 Average Temperature 66 | . 68 4 Received Heat Transfer 450 | . 222 228 Siege Activations . | . . . Robots Corrupted . | . . . Combat Hostiles . | . . . Parts Fried . | . . . Impact Corruptions . | . . . Robots Melted . | . . . Combat Hostiles . | . . . Parts Melted . | . . . Heat Transferred 509 | . 398 111 Parts Sabotaged . | . . . Parts Stolen . | . . . Parts Stripped . | . . . Power Chain Reactions . | . . . Missiles Intercepted . | . . . Alert | -11 -10 -9 ------- Run | Scr Mat Mat Peak Influence 145 | . 97 145 Average Influence 36 | . 24 94 Maximum Alert Level . | . . . Low Security (%) 100 | 100 100 100 Level 1 . | . . . Level 2 . | . . . Level 3 . | . . . Level 4 . | . . . Level 5 . | . . . High Security . | . . . Max Security . | . . . Squads Dispatched 2 | . 2 . Investigation 1 | . 1 . Extermination . | . . . Reinforcement 1 | . 1 . Assault . | . . . Garrison . | . . . Intercept . | . . . Construction Impeded . | . . . Haulers Reinforced . | . . . Stealth | -11 -10 -9 --------- Run | Scr Mat Mat Distress Signals 2 | . . 2 Communications Jammed . | . . . Distress Signals . | . . . Times Spotted 31 | . 16 15 Peak Tracking Total 9 | . 5 9 Tactical Retreats 2 | . . 2 Traps | -11 -10 -9 ------- Run | Scr Mat Mat Traps Triggered 1 | . . 1 Indirectly . | . . . Trap Hack Attempts . | . . . Triggered . | . . . Disarmed 4 | . 4 . Reprogrammed . | . . . Reused . | . . . Traps Extracted . | . . . Installed . | . . . Triggered . | . . . Machines | -11 -10 -9 ---------- Run | Scr Mat Mat Machines Disabled 2 | . 1 1 Max in Single Turn 1 | . 1 1 Machines Sabotaged . | . . . Garrisons Compromised . | . . . Overloaded Fab Kills . | . . . Fab Network Shutdowns . | . . . Hacking | -11 -10 -9 --------- Run | Scr Mat Mat Machines Accessed 6 | . 5 1 Terminals 4 | . 3 1 Fabricators . | . . . Repair Stations 1 | . 1 . Recycling Units 1 | . 1 . Scanalyzers . | . . . Garrison Access . | . . . Total Hacks 17 | . 16 1 Successful 12 | . 12 . Failed 5 | . 4 1 Catastrophic 1 | . . 1 Database Lockouts . | . . . Manual . | . . . Terminals 11 | . 10 1 Fabricators . | . . . Repair Stations 3 | . 3 . Recycling Units 3 | . 3 . Scanalyzers . | . . . Garrison Access . | . . . Terminal Hacks 8 | . 8 . Alert Level 1 | . 1 . Unreport Threat 3 | . 3 . Locate Traps 1 | . 1 . Disarm Traps 2 | . 2 . Investigation Status 1 | . 1 . Fabricator Hacks . | . . . Repair Station Hacks 2 | . 2 . Scan Component 1 | . 1 . Repair 1 | . 1 . Recycling Unit Hacks 2 | . 2 . Report Inventory 1 | . 1 . Retrieve Components 1 | . 1 . Scanalyzer . | . . . Garrison Access Hacks . | . . . Unauthorized Hacks . | . . . Terminals . | . . . Fabricators . | . . . Repair Stations . | . . . Recycling Units . | . . . Scanalyzers . | . . . Garrison Access . | . . . Data Cores Recovered . | . . . Used . | . . . Hacking Detections 4 | . 3 1 Full Trace Events 1 | . 1 . Feedback Events . | . . . Feedback Blocked . | . . . Robot Schematics Acquired . | . . . Robots Built . | . . . Matter . | . . . Time . | . . . Total Robot Build Rating . | . . . Part Schematics Acquired . | . . . Parts Built . | . . . Matter . | . . . Time . | . . . Total Part Build Rating . | . . . Parts Repaired 1 | . 1 . Time 26 | . 26 . Parts Recycled . | . . . Recycled Matter . | . . . Retrieved Matter . | . . . Retrieved Components 3 | . 3 . Parts Scanalyzed . | . . . Part Schematics Acquired . | . . . Parts Damaged . | . . . Bothacking | -11 -10 -9 ------------ Run | Scr Mat Mat Used RIF Installer . | . . . Robots Hacked . | . . . Non-combat . | . . . Combat . | . . . Robot Hacks Applied . | . . . Relay Couplers Released . | . . . Robots Rewired . | . . . Allies Hacked . | . . . Hacks Repelled . | . . . Allies | -11 -10 -9 -------- Run | Scr Mat Mat Total Allies . | . . . Largest Group . | . . . Highest-Rated Group . | . . . Highest-Rated Ally . | . . . Total Orders . | . . . Ally Attacks . | . . . Total Damage . | . . . Kills . | . . . Allies Corrupted . | . . . Allies Melted . | . . . Intel | -11 -10 -9 ------- Run | Scr Mat Mat Robot Analysis Total . | . . . Derelict Logs Recovered . | . . . Drone Launches . | . . . Drone Recoveries . | . . . Exploration | -11 -10 -9 ------------- Run | Scr Mat Mat Turns Passed 893 | 65 650 178 Spaces Moved 655 | 49 394 212 Core 13 | 5 3 5 Treads . | . . . Legs 330 | 44 286 . Wheels . | . . . Hover . | . . . Flight 312 | . 105 207 Fastest Speed 34 | 50 37 34 Average Speed 81 | 112 100 37 Slowest Speed 150 | 120 150 150 Overloaded Moves . | . . . Propulsion Burnouts . | . . . Robots Hopped 3 | . 3 . Cave-ins Triggered . | . . . Exploration Rate (%) 30 | 3 59 30 Regions Visited 2 Branch Regions . Pre-discovered Areas . | . . . Known Exits Taken 1 | . 1 . Unknown Exits Taken 1 | 1 . . Scrap Searched . | . . . Spaces Dug 15 | . 7 8 Terrain Destroyed 44 | . 13 31 Melee 1 | . 1 . Projectile 8 | . 8 . AOE 35 | . 4 31 Actions | -11 -10 -9 --------- Run | Scr Mat Mat Total 902 | 55 561 286 Wait 103 | . 71 32 Move 647 | 48 387 212 Hop 3 | . 3 . Pick Up 23 | 1 17 5 Fast Attach 18 | 6 5 7 Attach 13 | . 8 5 Detach 5 | . 4 1 Swap 17 | . 14 3 Drop 18 | . 17 1 Fire 29 | . 17 12 Melee 18 | . 18 . Ram 8 | . . 8 Kick . | . . . Crush . | . . . Escape Stasis . | . . . Rewire . | . . . Trap . | . . . Miscellaneous . | . . . Route ------- -11/Scrapyard -10/Materials (discovered 2 exits: *Mat / [*Min]) -9/Materials History --------- Turn | Location | Event 8 | -11/Scrapyard | Discovered new exit (range 16) 66 | -11/Scrapyard | Entered Materials 291 | -10/Materials | Discovered new exit (range 7) 303 | -10/Materials | Build established: Mutant 583 | -10/Materials | Repaired Mining Laser 704 | -10/Materials | Core integrity fell below 50% 708 | -10/Materials | Discovered new exit (range 16) 715 | -10/Materials | Identified exit to Materials 716 | -10/Materials | Entered another Materials area 716 | -9/Materials | Evolved 2 slots: Propulsion x2 866 | -9/Materials | Core integrity fell below 50% 889 | -9/Materials | Core integrity fell below 20% 894 | -9/Materials | Destroyed by Y-45 Defender with Beam Rifle Last Messages --------------- 00857_ Acquired 20 matter. 00860_ Acquired Flight Unit. 00860_ R-06 Scavenger collects Flight Unit. 00863_ Acquired Lgt. Ion Engine. 00863_ R-06 Scavenger collects Lgt. Ion Engine. 00865_ System corrupted: Energy discharge (-14). 00870_ Recycling Unit disabled. 00870_ Hpw. Tractor Beam tumbles out of recycling unit. 00870_ G-34 Mercenary destroyed. 00870_ Arm. Wheel tumbles out of recycling unit. 00870_ S-10 Pest destroyed. 00870_ Lgt. Ion Engine destroyed. 00870_ Destroyed Lgt. Ion Engine. 00870_ Grenade Launcher destroyed. 00873_ System corrupted: Lgt. Assault Rifle targeting data glitched. 00873_ Flight Unit destroyed. 00875_ Destroyed Sml. Laser. 00882_ Plasma Cutter destroyed. 00885_ Lgt. Assault Rifle destroyed. 00889_ Acquired Plasma Cutter. Map ----- +----------------------------------------------------+ | ?????? "#????####+##### #######?? | | ?####### """ """ T#????# # #???????? | | ?# # """ """ "#????# "" """ ## # ????? | | ?# / """ """ ###### "T """ ## # """ #?? | | ?# ! # + "" """ ## # """ #?? | | ?# # #### # ## + """ #?? | | ?# !! # ##+#####/##??# # """ ## # """ !#?? | | ?# !! # #??? #??# # """ ## # ????? | | ?# # # #??# # """ ## #?###????? | | ?####+## + "Y" #??# # ## #????????? | | ????# # """ #??# ##+######## #????????? | | ?####/###/############??# #??????? ?????????? | | ?# #????????????# #??????? ?????????? | | ?# #????????????# #??????? ?????????? | | ?# #????????????# ?????? ?????????? | | ?# #????????????# ???? ?????????? | | ?# #????????????#### ?? ?????????? | | ?# #? ??????####???######## ?????????? | | ?# ! #??a ???# #### ##?????#+?????????? | | ?# #??? "??# #????????????????? | | ?#######+###????? ?# #????????????????? | | ??# ###+####/# #????????????????? | | ### uu #????????????????? | | %Y [*| #????????????????? | | #" Y% #????????????????? | | "Y!@ #????????????????? | | "" ####### #" #????????????????? | | "" #?????# = #????????????????? | | "T #?????#k # # ###????????????????? | | "" #?????# ########??????????????????? | | "" #?????#k #?????????????????????????? | | #?????# #?????????????????????????? | | #?????# #?????????????????????????? | | ############?????# #?????????????????????????? | | ?????????????????# #?????????????????????????? | | ?????????????????# #?????????????????????????? | | ????????????????? ?????????????????????????? | | ????????????????? ?????????????????????????? | | ????????????????? T ?????????????????????????? | | ????????????????? ?????????????????????????? | | ????????????????? ? #????????????????????????? | | ??????????????????#?#??????????????????????????? | | ???????????????????????????????????????????????? | | ???????????????????????????????????????????????? | | ???????????????????????????????????????????????? | | ???????????????????????????????????????????????? | | ???????????????????????????????????????????????? | | ???????????????????????????????????????????????? | | ???????????????????????????????????????????????? | | ???????????????????????????????????????????????? | +----------------------------------------------------+ Best States ------------- Heat Dissipation 28 Energy Generation 10 Energy Capacity 125 Matter Stores 255 Matter Capacity 300 Sight Range 16 Terrain Scan Density 10 Evasion (%) 63 Item Schematics ----------------- None Robot Schematics ------------------ None Fabricated ------------ Nothing Alien Tech Used ----------------- None Achievements -------------- None Challenges ------------ None Game ------ Seed TiamatQuantumStorage Manual? 0 Play Time 00:34:13 Cumulative 24.8 hours Start 2020.05.31 @ 21:31:39 End 2020.05.31 @ 23:00:10 Sessions 1 Manual Loads 0 Difficulty Rogue Special Mode None Game No. 35 Rogue 35 Adventurer 0 Explorer 0 Win Type - Total 0 Types 0/0/0/0/0/0/0 Lore% 20 Gallery% 23 Achievement% 17 Wizard Run 0 Options --------- ASCII 0 Keyboard 0 Movement Mouse Keybinds 0 Fullscreen 2 Font 24/Terminus Map View 113x50 Tactical HUD 1 Map Filters NONE Filters NONE Steam 1 RUN: ca69a849-3538-4d95-b6a5-d0c1543bb5a4